bitfinex-derivatives/quotes_BTCF0:USTF0_20250620
["timestamp","ask_amount","ask_price","bid_price","bid_amount"]
[1750426095538,1.23216538,106080.0,106070.0,0.57729407]
[1750426096244,1.23216538,106080.0,106070.0,0.00417407]
[1750426096837,1.61112502,106080.0,106070.0,0.00417407]
[1750426097038,1.61312502,106080.0,106070.0,0.00417407]
[1750426097345,1.23416538,106080.0,106070.0,0.00417407]
[1750426098441,1.23516538,106080.0,106070.0,0.00417407]
[1750426098844,0.1885528,106060.0,106050.0,0.42959927]
[1750426099051,0.6497909,106060.0,106050.0,1.08118187]
[1750426099344,0.28899098,106060.0,106050.0,1.41301221]
[1750426099541,0.64979134,106060.0,106050.0,1.41301221]
[1750426099946,0.64979144,106060.0,106050.0,1.41301221]
[1750426100346,0.59330214,106060.0,106050.0,1.41501221]
[1750426101042,0.59330214,106060.0,106050.0,1.41701221]
[1750426101741,0.59330214,106060.0,106050.0,0.71085221]
[1750426101945,0.59330214,106060.0,106050.0,1.41693221]
[1750426102551,0.59330214,106060.0,106050.0,1.03797257]
[1750426104452,0.59330214,106060.0,106050.0,1.03597257]
[1750426105350,0.59330214,106060.0,106050.0,1.03397257]
[1750426106347,0.59330214,106060.0,106050.0,1.03381257]
[1750426109647,0.59330214,106060.0,106050.0,0.90101257]
[1750426109848,0.66862049,106060.0,106050.0,0.90101257]
[1750426110848,0.97247192,106060.0,106050.0,1.28018235]
[1750426113253,0.97247192,106060.0,106050.0,0.70706235]
[1750426113556,0.97247192,106060.0,106050.0,1.27998235]
[1750426114759,0.97247192,106060.0,106050.0,0.90081257]
[1750426115056,0.97247192,106060.0,106050.0,1.28415642]
[1750426115555,0.97247192,106060.0,106050.0,1.09550582]
[1750426115751,0.97247192,106060.0,106050.0,1.28407652]
[1750426116250,0.1885706,106050.0,106040.0,0.000943]
[1750426116456,1.64077785,106050.0,106040.0,0.000943]
[1750426116655,0.56777588,106030.0,106020.0,0.2536218]
[1750426116851,1.00894636,106030.0,106020.0,0.44416978]
[1750426117049,1.00894636,106030.0,106020.0,1.01716978]
[1750426117359,1.00894636,106030.0,106020.0,0.638]
[1750426117747,1.58974636,106030.0,106020.0,0.638]
[1750426117948,1.58974636,106030.0,106020.0,0.065]
[1750426118350,1.58974636,106030.0,106020.0,0.63808]
[1750426118857,1.58974636,106030.0,106020.0,0.64208]
[1750426118858,1.59002088,106030.0,106020.0,0.64208]
[1750426119051,1.59002088,106030.0,106020.0,0.069]
[1750426119257,1.59002088,106030.0,106020.0,0.0369]
[1750426119455,1.62262088,106030.0,106020.0,0.60998]
[1750426120456,1.62262088,106030.0,106020.0,0.61298]
[1750426120859,1.62262088,106030.0,106020.0,0.0399]
[1750426121259,1.62262088,106030.0,106020.0,0.58004]
[1750426121453,1.62262088,106030.0,106020.0,0.007]
[1750426121763,0.1886239,106020.0,106010.0,0.03424326]
[1750426122064,1.22432781,106020.0,106010.0,0.60740326]
[1750426122363,1.07432781,106020.0,106010.0,0.60740326]
[1750426122558,1.01801754,106020.0,106010.0,0.60740326]
[1750426122861,1.19801754,106020.0,106010.0,0.60740326]
[1750426123159,1.27432781,106020.0,106010.0,0.60740326]
[1750426123353,1.21801754,106020.0,106010.0,0.79604496]
[1750426123556,1.07432781,106020.0,106010.0,0.79600496]
[1750426123761,1.24432781,106020.0,106010.0,0.60736326]
[1750426124357,0.44105961,106020.0,106010.0,0.80100496]
[1750426124549,0.57337324,106020.0,106010.0,1.21054926]
[1750426124754,0.57377324,106020.0,106010.0,1.21054926]
[1750426125855,0.57377324,106020.0,106010.0,0.83110496]
[1750426129357,0.57377324,106020.0,106010.0,0.83527903]
[1750426132960,0.57377324,106020.0,106010.0,0.96831903]
[1750426133360,0.57377324,106020.0,106010.0,0.26215903]
[1750426133556,0.57377324,106020.0,106010.0,0.96827903]
[1750426136168,0.57377324,106020.0,106010.0,0.26215903]
[1750426136372,0.57377324,106020.0,106010.0,0.96811903]
[1750426136869,0.63008351,106020.0,106010.0,0.96811903]
[1750426138874,0.63008351,106020.0,106010.0,0.96791903]
[1750426140774,0.63008351,106020.0,106010.0,0.96795903]
[1750426140963,1.00952781,106020.0,106010.0,0.96795903]
[1750426141665,1.00952781,106020.0,106010.0,0.83543903]
[1750426141864,0.63008351,106020.0,106010.0,0.83543903]
[1750426142379,1.00952781,106020.0,106010.0,0.83543903]
[1750426142872,1.04182781,106020.0,106010.0,0.83543903]
[1750426144372,0.66238351,106020.0,106010.0,0.83543903]
[1750426144876,0.66238351,106020.0,106010.0,0.96827903]
[1750426145673,0.60607324,106020.0,106010.0,0.96827903]
[1750426146271,0.98551754,106020.0,106010.0,0.96827903]
[1750426147482,1.01601754,106020.0,106010.0,0.96827903]
[1750426148970,0.63657324,106020.0,106010.0,1.34772333]
[1750426149171,0.57377324,106020.0,106010.0,1.34772333]
[1750426150268,0.57377324,106020.0,106010.0,1.34782333]
[1750426150974,0.95321754,106020.0,106010.0,0.07361733]
[1750426151175,1.63929003,106020.0,106010.0,0.58345733]
[1750426151371,1.18461754,106020.0,106010.0,0.58345733]
[1750426151980,1.18461754,106020.0,106010.0,0.01021733]
[1750426152180,1.18461754,106020.0,106010.0,0.58345733]
[1750426152678,1.25995567,106020.0,106010.0,0.58245733]
[1750426153284,1.25995567,106020.0,106010.0,0.77109903]
[1750426153673,1.25995567,106020.0,106010.0,0.58245733]
[1750426154084,1.25995567,106020.0,106010.0,0.58045733]
[1750426154381,0.88051137,106020.0,106010.0,0.76909903]
[1750426154582,0.71051137,106020.0,106010.0,0.83289903]
[1750426154771,0.71011137,106020.0,106010.0,0.83289903]
[1750426155583,0.71051137,106020.0,106010.0,0.83289903]
[1750426157384,0.67941137,106020.0,106010.0,1.21234333]
[1750426158387,0.67941137,106020.0,106010.0,0.83289903]
[1750426160287,0.64911137,106020.0,106010.0,0.83289903]
[1750426160887,0.64871137,106020.0,106010.0,0.83289903]
[1750426161187,0.64911137,106020.0,106010.0,0.83289903]
[1750426161579,0.64911137,106020.0,106010.0,1.21234333]
[1750426161779,0.64911137,106020.0,106010.0,0.83289903]
[1750426163496,1.02855567,106020.0,106010.0,0.83289903]
[1750426163681,1.05885567,106020.0,106010.0,0.61355733]
[1750426163882,1.08945567,106020.0,106010.0,0.61355733]
[1750426164179,0.71001137,106020.0,106010.0,0.61355733]
[1750426164376,1.08945567,106020.0,106010.0,0.22895903]
[1750426164585,1.08945567,106020.0,106010.0,0.64389733]
[1750426165185,1.08945567,106020.0,106010.0,0.61379733]
[1750426165991,1.08945567,106020.0,106010.0,0.80243903]
[1750426166188,1.08945567,106020.0,106010.0,0.83273903]
[1750426166583,1.08945567,106020.0,106010.0,0.64409733]
[1750426169282,1.08945567,106020.0,106010.0,0.83273903]
[1750426169791,1.08945567,106020.0,106010.0,0.64409733]
[1750426169996,1.08945567,106020.0,106010.0,0.83273903]
[1750426170195,1.08945567,106020.0,106010.0,0.64409733]
[1750426170885,1.08945567,106020.0,106010.0,0.83273913]
[1750426171795,1.08945567,106020.0,106010.0,0.64409733]
[1750426171989,1.08945567,106020.0,106010.0,0.83273903]
[1750426172199,1.08945567,106020.0,106010.0,0.64409733]
[1750426173188,1.02855567,106020.0,106010.0,0.83273913]
[1750426173786,0.64911137,106020.0,106010.0,0.83273913]
[1750426177795,0.64871137,106020.0,106010.0,1.21218343]
[1750426177997,0.64911137,106020.0,106010.0,1.21218343]
[1750426180899,0.28791137,106020.0,106010.0,1.34470343]
[1750426181097,0.21257324,106020.0,106010.0,1.34470343]
[1750426181298,0.28791137,106020.0,106010.0,1.34470343]
[1750426181503,0.21257324,106020.0,106010.0,0.96525913]
[1750426181704,0.2694951,106020.0,106010.0,1.34470343]
[1750426182103,0.2694951,106020.0,106010.0,1.21218343]
[1750426182691,0.26948583,106020.0,106010.0,1.57298343]
[1750426182892,0.0645708,106020.0,106010.0,1.57298343]
[1750426183205,0.00805821,106020.0,106010.0,1.61298343]
[1750426183389,0.00765821,106020.0,106010.0,1.61298343]
[1750426183593,0.00805821,106020.0,106010.0,1.61298343]
[1750426183796,0.00805821,106020.0,106010.0,1.89298343]
[1750426183997,0.00805821,106020.0,106010.0,2.73108373]
[1750426184197,0.00805821,106020.0,106010.0,2.48108373]
[1750426184398,0.00765821,106020.0,106010.0,2.48108373]
[1750426184597,0.00805821,106020.0,106010.0,2.48108373]
[1750426186104,1e-08,106020.0,106010.0,2.48108373]
[1750426186296,0.05651259,106040.0,106030.0,0.1886063]
[1750426186605,0.0008,106040.0,106030.0,1.6342906]
[1750426186802,0.0008,106040.0,106030.0,2.4283906]
[1750426187304,0.05651259,106050.0,106040.0,0.1885885]
[1750426187503,0.05651259,106050.0,106040.0,1.3721328]
[1750426187700,0.35551089,106060.0,106050.0,0.1885707]
[1750426187904,0.30837219,106060.0,106050.0,1.336715]
[1750426188105,0.05731259,106060.0,106050.0,1.697515]
[1750426188312,0.05731259,106060.0,106050.0,2.0769593]
[1750426188603,0.0008,106060.0,106050.0,1.697515]
[1750426189004,0.35588879,106070.0,106060.0,0.188553]
[1750426189195,0.12021259,106070.0,106060.0,0.9287973]
[1750426189399,0.12101259,106070.0,106060.0,0.9599973]
[1750426189599,0.05651259,106070.0,106060.0,0.9921973]
[1750426189799,0.35656549,106080.0,106070.0,0.1885352]
[1750426189995,0.30922451,106080.0,106070.0,1.2733795]
[1750426190307,0.30922081,106080.0,106070.0,1.2733795]
[1750426190498,0.31002081,106080.0,106070.0,1.2733795]
[1750426190693,0.2529174,106080.0,106070.0,1.6341795]
[1750426190901,0.2533174,106080.0,106070.0,1.6341795]
[1750426191094,0.2532174,106080.0,106070.0,1.65111491]
[1750426191300,0.2532174,106080.0,106070.0,1.68231491]
[1750426191699,0.2531174,106080.0,106070.0,1.68231491]
[1750426191900,0.0646,106080.0,106070.0,1.68231491]
[1750426192100,0.0004,106080.0,106070.0,2.05231491]
[1750426192302,0.0004,106080.0,106070.0,2.44216768]
[1750426192303,0.017,106080.0,106070.0,2.44216768]
[1750426192612,0.0004001,106080.0,106070.0,2.54634481]
[1750426192806,1e-07,106080.0,106070.0,2.54734481]
[1750426192999,0.0004001,106080.0,106070.0,2.73588881]
[1750426193998,1e-07,106080.0,106070.0,2.73588881]
[1750426194301,0.001,106100.0,106070.0,2.84448351]
[1750426194501,0.0018,106100.0,106090.0,1.2895439]
[1750426194703,0.0018,106100.0,106090.0,2.3047439]
[1750426195004,0.0018,106100.0,106090.0,2.3678439]
[1750426195403,0.001,106100.0,106090.0,2.3678439]
[1750426195604,0.1894819,106100.0,106090.0,1.6626439]
[1750426195807,0.0024,106100.0,106090.0,2.3678439]
[1750426196304,0.1908819,106100.0,106090.0,2.3678439]
[1750426196510,0.1908819,106100.0,106090.0,2.0578039]
[1750426196812,0.1908819,106100.0,106090.0,2.4088039]
[1750426198204,0.02606239,106100.0,106090.0,2.4087239]
[1750426198406,0.0024,106100.0,106090.0,2.4087239]
[1750426198795,0.002,106100.0,106090.0,2.4087239]
[1750426198999,0.0024,106100.0,106090.0,2.4087239]
[1750426199709,0.0024,106100.0,106090.0,2.42555441]
[1750426200097,0.0024,106100.0,106090.0,2.29323441]
[1750426200406,0.0008,106110.0,106100.0,0.1884819]
[1750426200607,0.0008,106110.0,106100.0,2.0817705]
[1750426200805,0.329803,106120.0,106110.0,0.1884641]
[1750426201009,0.35428567,106120.0,106110.0,1.1409884]
[1750426201209,0.1884641,106110.0,106100.0,0.7063101]
[1750426201397,0.1884819,106100.0,106090.0,0.11207901]
[1750426201601,0.2499819,106100.0,106090.0,2.08680891]
[1750426201801,0.2736652,106100.0,106090.0,1.61448891]
[1750426202011,0.27366625,106100.0,106090.0,1.56736431]
[1750426202709,0.63446625,106100.0,106090.0,1.34704431]
[1750426202904,0.6107819,106100.0,106090.0,1.34704431]
[1750426203104,0.63446765,106100.0,106090.0,1.34612431]
[1750426203304,0.63446765,106100.0,106090.0,0.63988431]
[1750426203505,0.27366765,106100.0,106090.0,1.70720431]
[1750426203710,0.27366765,106100.0,106090.0,2.02720431]
[1750426203904,0.27406765,106100.0,106090.0,2.05720431]
[1750426204103,0.27406765,106100.0,106090.0,2.08120431]
[1750426204306,0.27396765,106100.0,106090.0,2.08120431]
[1750426204807,0.02408575,106100.0,106090.0,1.37468431]
[1750426205013,0.0008,106110.0,106100.0,0.1884818]
[1750426205214,0.349266,106130.0,106120.0,0.1884463]
[1750426205509,0.3298037,106120.0,106110.0,0.3207841]
[1750426205714,0.37187895,106120.0,106110.0,1.6354284]
[1750426205909,0.21213695,106120.0,106110.0,2.4050727]
[1750426206206,0.02409065,106120.0,106110.0,2.4382727]
[1750426206413,0.02369065,106120.0,106110.0,2.4382727]
[1750426206611,0.02409065,106120.0,106110.0,2.4382727]
[1750426207204,0.0004,106120.0,106110.0,2.4382727]
[1750426207407,0.3306697,106130.0,106120.0,0.1884464]
[1750426207603,0.35516126,106130.0,106120.0,1.6361707]
[1750426207813,0.42076126,106130.0,106120.0,1.6361707]
[1750426208301,0.02539156,106130.0,106120.0,1.9460107]
[1750426208506,0.02539156,106130.0,106120.0,2.0116107]
[1750426208707,0.02639156,106130.0,106120.0,2.0286301]
[1750426208914,0.02559156,106130.0,106120.0,2.59531804]
[1750426209106,0.02589156,106130.0,106120.0,2.59531804]
[1750426209308,0.21392016,106130.0,106120.0,1.42460071]
[1750426209513,0.22432016,106130.0,106120.0,1.28345459]
[1750426209813,0.27952016,106130.0,106120.0,1.39900071]
[1750426210014,0.27952016,106130.0,106120.0,1.75652071]
[1750426210211,0.27952016,106130.0,106120.0,1.78942071]
[1750426210410,0.27912016,106130.0,106120.0,1.78942071]
[1750426210611,0.27952016,106130.0,106120.0,2.09942071]
[1750426210811,0.27952016,106130.0,106120.0,2.12942071]
[1750426211007,0.28052016,106130.0,106120.0,1.78942071]
[1750426211215,0.28052016,106130.0,106120.0,0.21913459]
[1750426211518,0.28052016,106130.0,106120.0,0.92817459]
[1750426211718,0.28052016,106130.0,106120.0,0.2094657]
[1750426212207,0.63932016,106130.0,106120.0,0.7301794]
[1750426212407,0.63932016,106130.0,106120.0,0.9196258]
[1750426212603,0.27852016,106130.0,106120.0,0.7311794]
[1750426212813,0.63932016,106130.0,106120.0,0.7311794]
[1750426213213,1.16869103,106130.0,106120.0,0.0220194]
[1750426213419,1.16869103,106130.0,106120.0,0.7312594]
[1750426214018,1.16869103,106130.0,106120.0,0.71900277]
[1750426214218,1.35714703,106130.0,106120.0,0.58532277]
[1750426214406,1.36714703,106130.0,106120.0,0.58532277]
[1750426214606,1.55748668,106130.0,106090.0,2.0143086]
[1750426214810,0.1884819,106100.0,106090.0,1.86706668]
[1750426215022,0.21217346,106100.0,106090.0,3.0494128]
[1750426215220,0.27567346,106100.0,106090.0,3.0494128]
[1750426215519,0.27567346,106100.0,106090.0,1.2153328]
[1750426215718,0.27567346,106100.0,106090.0,1.9245728]
[1750426216015,0.02369156,106100.0,106090.0,2.2895728]
[1750426216315,0.21217346,106100.0,106090.0,2.3227728]
[1750426216713,0.02369156,106100.0,106090.0,2.3227728]
[1750426216912,0.02409156,106100.0,106090.0,2.33209903]
[1750426217315,0.21217346,106100.0,106090.0,2.33209903]
[1750426217513,0.21257346,106100.0,106090.0,2.34109903]
[1750426217726,0.02409156,106100.0,106090.0,2.34109903]
[1750426218227,0.02409156,106100.0,106090.0,2.33609903]
[1750426218519,0.21257346,106100.0,106090.0,2.33009903]
[1750426218720,0.21257346,106100.0,106090.0,1.61102852]
[1750426218920,0.30030489,106100.0,106090.0,2.32038852]
[1750426219324,0.24417346,106100.0,106090.0,2.32038852]
[1750426219622,0.30030489,106100.0,106090.0,2.32038852]
[1750426220318,0.30030489,106100.0,106090.0,2.32238852]
[1750426222016,0.30030489,106100.0,106090.0,2.15546852]
[1750426222316,0.33080489,106100.0,106090.0,2.25834852]
[1750426222525,0.33080489,106100.0,106090.0,1.89834852]
[1750426223119,0.33080489,106100.0,106090.0,1.18922852]
[1750426223330,0.33080489,106100.0,106090.0,1.89830852]
[1750426224027,0.33080489,106100.0,106090.0,1.92960852]
[1750426224635,0.33080489,106100.0,106090.0,1.92260852]
[1750426224819,0.33080489,106100.0,106090.0,1.96230852]
[1750426225319,0.33080489,106100.0,106090.0,1.22052852]
[1750426225619,0.33080489,106100.0,106090.0,1.92948852]
[1750426227325,0.34974646,106100.0,106090.0,0.9085396]
[1750426227832,0.34974646,106100.0,106090.0,1.38577979]
[1750426228629,0.34974646,106100.0,106090.0,1.39501709]
[1750426228820,0.34974646,106100.0,106090.0,1.38577979]
[1750426229523,0.34974646,106100.0,106090.0,1.41897979]
[1750426229725,0.24417346,106100.0,106090.0,2.08977979]
[1750426229928,0.26896136,106100.0,106090.0,2.12297979]
[1750426230321,0.26856136,106100.0,106090.0,2.12297979]
[1750426230717,0.08007946,106100.0,106090.0,2.12297979]
[1750426231226,0.08047946,106100.0,106090.0,2.12297979]
[1750426231425,0.08007946,106100.0,106090.0,2.12297979]
[1750426231625,0.02409156,106100.0,106090.0,2.27376601]
[1750426231828,0.02369156,106100.0,106090.0,2.27376601]
[1750426232025,0.0563879,106110.0,106100.0,0.1884819]
[1750426232333,0.0563879,106110.0,106100.0,1.46574802]
[1750426232534,0.08072298,106110.0,106100.0,1.46574802]
[1750426232935,0.26878708,106110.0,106100.0,1.40574802]
[1750426233126,0.26918708,106110.0,106100.0,1.40574802]
[1750426233635,0.08072298,106110.0,106100.0,1.40574802]
[1750426234333,0.08072298,106110.0,106100.0,1.40774802]
[1750426234728,0.26918708,106110.0,106100.0,1.40774802]
[1750426235035,0.26918708,106110.0,106100.0,0.6186819]
[1750426235334,0.26918708,106110.0,106100.0,1.10174802]
[1750426235635,0.26918708,106110.0,106100.0,2.13110802]
[1750426236029,0.26918708,106110.0,106100.0,2.13528209]
[1750426241235,0.26878708,106110.0,106100.0,2.13528209]
[1750426241632,0.26918708,106110.0,106100.0,2.13528209]
[1750426242343,0.08072298,106110.0,106100.0,2.13528209]
[1750426242730,0.02393508,106110.0,106100.0,2.13528209]
[1750426242930,0.0563879,106120.0,106100.0,2.13528209]
[1750426242931,0.0563879,106120.0,106110.0,0.1884641]
[1750426243138,0.0563879,106120.0,106110.0,1.4618431]
[1750426243641,0.02439599,106120.0,106110.0,1.4618431]
[1750426243832,0.02399599,106120.0,106110.0,1.4618431]
[1750426244237,0.02439599,106120.0,106110.0,2.2764831]
[1750426244537,0.01939598,106120.0,106110.0,2.2774831]
[1750426244736,0.01899598,106120.0,106110.0,2.75054922]
[1750426244940,0.0008,106130.0,106120.0,0.1884464]
[1750426245144,0.0008,106130.0,106120.0,2.59023864]
[1750426245535,0.0012,106130.0,106120.0,2.59023864]
[1750426245736,0.0012,106130.0,106120.0,2.77869464]
[1750426246237,1e-07,106130.0,106120.0,2.77869464]
[1750426246541,0.0004001,106130.0,106120.0,2.77869464]
[1750426248037,0.0004,106130.0,106120.0,2.78069464]
[1750426248845,1e-07,106130.0,106120.0,2.78069464]
[1750426249038,0.0008,106150.0,106140.0,0.1884108]
[1750426249236,0.0008,106150.0,106140.0,2.48354376]
[1750426249438,0.001,106160.0,106150.0,0.1883931]
[1750426249743,0.001,106160.0,106150.0,1.45465922]
[1750426250142,0.1893754,106160.0,106150.0,1.45465922]
[1750426250338,0.001,106160.0,106150.0,1.45465922]
[1750426251538,0.0014,106160.0,106150.0,1.45465922]
[1750426251740,0.0014,106160.0,106150.0,1.52928733]
[1750426252132,0.1897754,106160.0,106150.0,1.52928733]
[1750426252337,0.0014,106160.0,106150.0,1.52928733]
[1750426253144,0.0014,106160.0,106150.0,2.34372733]
[1750426253456,0.001,106160.0,106150.0,2.34372733]
[1750426254148,0.0014,106160.0,106150.0,3.05496733]
[1750426256344,0.001,106160.0,106150.0,3.05496733]
[1750426256738,0.02530892,106160.0,106150.0,3.05496733]
[1750426256942,0.0014,106160.0,106150.0,3.05496733]
[1750426257448,0.001,106160.0,106150.0,3.05496733]
[1750426257646,0.0014,106160.0,106150.0,3.05496733]
[1750426258146,0.0014,106160.0,106150.0,3.05472733]
[1750426259048,0.02531353,106160.0,106150.0,3.05472733]
[1750426261849,0.02531353,106160.0,106150.0,2.34372733]
[1750426262250,0.23368893,106160.0,106150.0,2.28132733]
[1750426262556,0.27418893,106160.0,106150.0,2.99204733]
[1750426262749,0.27418893,106160.0,106150.0,2.51898121]
[1750426262939,0.27418893,106160.0,106150.0,1.0028332]
[1750426263144,0.63498893,106160.0,106150.0,1.7138732]
[1750426263858,0.63498893,106160.0,106150.0,1.7142332]
[1750426264246,0.1883932,106150.0,106140.0,0.37807927]
[1750426264446,0.63670673,106150.0,106140.0,0.91697017]
[1750426264648,0.1884109,106140.0,106130.0,0.6434225]
[1750426264849,0.27592443,106140.0,106130.0,1.7047425]
[1750426265049,0.27592443,106140.0,106130.0,1.3547425]
[1750426265254,0.27592443,106140.0,106130.0,1.43035812]
[1750426265957,0.27592443,106140.0,106130.0,1.82780862]
[1750426266149,0.27592443,106140.0,106130.0,1.83180862]
[1750426266950,0.27592443,106140.0,106130.0,1.12048862]
[1750426267151,0.27592443,106140.0,106130.0,1.47088862]
[1750426267360,0.08751353,106140.0,106130.0,2.20168862]
[1750426267565,0.27592443,106140.0,106130.0,2.20168862]
[1750426267860,0.27592443,106140.0,106130.0,2.20268862]
[1750426268462,0.08791353,106140.0,106130.0,2.20268862]
[1750426268660,0.08751353,106140.0,106130.0,2.20268862]
[1750426268862,0.08791353,106140.0,106130.0,2.20268862]
[1750426269061,0.08791353,106140.0,106130.0,0.005]
[1750426269062,0.27632443,106140.0,106130.0,0.005]
[1750426269359,1.11019055,106140.0,106130.0,0.9044287]
[1750426269559,0.74939055,106140.0,106130.0,0.9044287]
[1750426269859,0.33271233,106140.0,106130.0,1.73829482]
[1750426270050,0.27632443,106140.0,106130.0,2.09829482]
[1750426270250,0.08751353,106140.0,106130.0,2.09829482]
[1750426270653,0.08791353,106140.0,106130.0,2.09829482]
[1750426270850,0.08751353,106140.0,106130.0,2.13089482]
[1750426271162,0.08791353,106140.0,106130.0,2.13089482]
[1750426271864,0.02431353,106140.0,106130.0,2.13089482]
[1750426272064,0.02431353,106140.0,106130.0,2.16189482]
[1750426272265,0.02391353,106140.0,106130.0,2.16189482]
[1750426272557,0.3077818,106150.0,106140.0,0.1884109]
[1750426272558,0.3085811,106150.0,106140.0,0.1884109]
[1750426272757,0.33255089,106150.0,106140.0,1.02227702]
[1750426273763,0.14415769,106150.0,106140.0,1.02227702]
[1750426273964,0.14415769,106150.0,106140.0,1.05467702]
[1750426274164,0.14415769,106150.0,106140.0,1.05667702]
[1750426274854,0.14415769,106150.0,106140.0,1.08797702]
[1750426275561,0.14375769,106150.0,106140.0,1.08797702]
[1750426275770,0.08075769,106150.0,106140.0,1.42797702]
[1750426276265,0.02436979,106150.0,106140.0,1.42797702]
[1750426276856,0.02396979,106150.0,106140.0,1.42797702]
[1750426277054,0.02436979,106150.0,106140.0,1.42797702]
[1750426279669,0.02436979,106150.0,106140.0,1.43215109]
[1750426280866,0.02436979,106150.0,106140.0,1.42797702]
[1750426281064,0.21276299,106150.0,106140.0,1.42797702]
[1750426281366,0.22276299,106150.0,106140.0,1.2628509]
[1750426281562,0.69455089,106150.0,106140.0,0.9020509]
[1750426282268,1.16761701,106150.0,106140.0,0.9024509]
[1750426282572,1.16761701,106150.0,106140.0,0.9024109]
[1750426282963,0.69455089,106150.0,106140.0,0.9024109]
[1750426283968,0.69455089,106150.0,106140.0,0.90658497]
[1750426284767,0.63816299,106150.0,106140.0,0.9024109]
[1750426285270,1.18630211,106150.0,106140.0,0.9024109]
[1750426286070,0.1884109,106140.0,106130.0,0.3701729]
[1750426286270,1.16561697,106140.0,106130.0,0.9478529]
[1750426286468,0.69255085,106140.0,106130.0,0.9478529]
[1750426286659,1.16561697,106140.0,106130.0,0.9478529]
[1750426286858,1.10924681,106140.0,106130.0,0.9478529]
[1750426287068,0.1884287,106130.0,106120.0,1.0497796]
[1750426287273,0.1884464,106120.0,106110.0,0.70745617]
[1750426287475,0.63571619,106120.0,106110.0,1.12905617]
[1750426287669,0.69208864,106120.0,106110.0,1.12905617]
[1750426287875,0.69208864,106120.0,106110.0,1.05909617]
[1750426288674,0.33128864,106120.0,106110.0,1.05909617]
[1750426288869,0.27491619,106120.0,106110.0,1.41989617]
[1750426289064,0.27491619,106120.0,106110.0,0.76805617]
[1750426289264,0.27491619,106120.0,106110.0,1.48537617]
[1750426289470,0.02436979,106120.0,106110.0,2.28844229]
[1750426289862,0.02396979,106120.0,106110.0,2.28844229]
[1750426290080,0.05717245,106140.0,106130.0,0.1884287]
[1750426290274,0.02400472,106140.0,106130.0,2.09553482]
[1750426290476,0.02400472,106140.0,106130.0,2.50773482]
[1750426291169,0.02400472,106140.0,106130.0,2.48773482]
[1750426291571,0.02440472,106140.0,106130.0,2.48773482]
[1750426292777,0.02440472,106140.0,106130.0,2.15773482]
[1750426292976,0.02440472,106140.0,106130.0,2.15873482]
[1750426293371,0.21281562,106140.0,106130.0,1.08549482]
[1750426293575,0.21281562,106140.0,106130.0,0.001]
[1750426293576,1.10305419,106140.0,106130.0,0.001]
[1750426293874,1.29822174,106140.0,106130.0,0.001]
[1750426294077,0.1884287,106130.0,106120.0,0.370193]
[1750426294278,1.16578734,106130.0,106120.0,0.9014464]
[1750426295376,0.1884464,106120.0,106110.0,0.4173179]
[1750426295679,0.80500504,106120.0,106110.0,0.9956379]
[1750426296070,0.33193892,106120.0,106110.0,0.2826779]
[1750426296279,0.33193892,106120.0,106110.0,0.9956379]
[1750426296470,0.69273892,106120.0,106110.0,1.0006379]
[1750426296872,0.69273892,106120.0,106110.0,0.9535223]
[1750426297267,0.69273892,106120.0,106110.0,0.2405623]
[1750426297480,0.2827209,106110.0,106100.0,0.1884779]
[1750426297779,1.25021164,106110.0,106100.0,0.7667979]
[1750426297979,0.83353332,106110.0,106100.0,0.7667979]
[1750426298484,0.41634552,106110.0,106100.0,0.7667979]
[1750426299079,0.36922562,106110.0,106100.0,0.1884779]
[1750426299279,0.36922562,106110.0,106100.0,0.9017579]
[1750426299477,0.02400472,106110.0,106100.0,1.05554402]
[1750426299678,0.02400472,106110.0,106100.0,2.13942402]
[1750426300079,0.02440472,106110.0,106100.0,2.13942402]
[1750426300582,0.02440472,106110.0,106100.0,2.14042402]
[1750426300782,0.02440472,106110.0,106100.0,2.14242402]
[1750426301285,0.21286892,106110.0,106100.0,1.80242402]
[1750426301584,0.21286892,106110.0,106100.0,1.08914402]
[1750426301781,0.21286892,106110.0,106100.0,0.7507179]
[1750426301982,0.21286892,106110.0,106100.0,1.2991579]
[1750426302171,0.21286892,106110.0,106100.0,1.3287579]
[1750426302377,0.24536892,106110.0,106100.0,1.3347579]
[1750426303083,0.02440472,106110.0,106100.0,2.12182402]
[1750426303285,0.21246892,106110.0,106100.0,1.80482402]
[1750426303484,0.21286892,106110.0,106100.0,1.3011579]
[1750426303685,0.27556892,106110.0,106100.0,1.3011579]
[1750426304374,0.27556892,106110.0,106100.0,1.2679579]
[1750426304575,0.63636892,106110.0,106100.0,0.9071579]
[1750426304787,1.10943504,106110.0,106100.0,0.9093179]
[1750426304982,0.74863504,106110.0,106100.0,0.9093179]
[1750426305582,1.10943504,106110.0,106100.0,0.9093179]
[1750426305885,1.10943504,106110.0,106100.0,0.909322]
[1750426306085,1.35431884,106110.0,106100.0,0.72084]
[1750426306676,1.35431884,106110.0,106100.0,0.72092]
[1750426307078,1.35431884,106110.0,106100.0,0.71892]
[1750426307282,1.54793104,106110.0,106100.0,0.58328]
[1750426307483,2.04393104,106110.0,106100.0,0.58328]
[1750426307680,2.11900404,106110.0,106100.0,0.58328]
[1750426308285,2.11900404,106110.0,106100.0,0.58128]
[1750426308674,2.25476404,106110.0,106100.0,0.001]
[1750426308876,0.1884997,106090.0,106080.0,0.13576]
[1750426309074,1.29115007,106090.0,106080.0,0.71616]
[1750426309280,1.35365007,106090.0,106080.0,0.71616]
[1750426309686,0.1885175,106080.0,106070.0,0.18947683]
[1750426309872,0.1885175,106080.0,106070.0,0.76983683]
[1750426309873,0.27502222,106080.0,106070.0,0.76983683]
[1750426310186,0.27502222,106080.0,106070.0,0.80063683]
[1750426310388,0.27502222,106080.0,106070.0,0.80063793]
[1750426310686,0.74808834,106080.0,106070.0,0.00094273]
[1750426310879,0.1885708,106050.0,106040.0,0.2366646]
[1750426311077,0.68564164,106050.0,106040.0,0.8171446]
[1750426311279,0.24287552,106050.0,106040.0,0.8171446]
[1750426311882,0.71594164,106050.0,106040.0,0.1895316]
[1750426312081,0.71594164,106050.0,106040.0,0.7700116]
[1750426312273,0.24287552,106050.0,106040.0,0.7700116]
[1750426312473,0.24287552,106050.0,106040.0,0.7790116]
[1750426312677,0.60367552,106050.0,106040.0,0.8121116]
[1750426313388,0.60367552,106050.0,106040.0,0.8181116]
[1750426314388,1.10984164,106050.0,106040.0,0.7848516]
[1750426315175,0.63677552,106050.0,106040.0,0.7848516]
[1750426316991,1.10984164,106050.0,106040.0,0.7848516]
[1750426317184,0.02400472,106050.0,106040.0,1.37839772]
[1750426317387,0.02440472,106050.0,106040.0,2.15803772]
[1750426317585,0.0004,106050.0,106040.0,2.15803772]
[1750426317884,0.2357069,106060.0,106050.0,0.1885709]
[1750426318088,0.26019211,106060.0,106050.0,0.6126709]
[1750426318984,0.25979211,106060.0,106050.0,0.6126709]
[1750426319487,0.21263831,106060.0,106050.0,1.08573702]
[1750426319689,0.21263831,106060.0,106050.0,1.09173702]
[1750426320096,0.21263831,106060.0,106050.0,0.6186709]
[1750426320281,0.02408521,106060.0,106050.0,1.45173702]